fUST/lending_fUST_20250421
["ID","MTS","AMOUNT","RATE_DAILY","PERIOD"]
[358512034,1745225459768,-214.58,0.00019726,2]
[358512035,1745225459778,-258.52,0.00019726,2]
[358512036,1745225459787,-407.44,0.00019726,2]
[358512037,1745225459797,-508.92268604,0.00019726,2]
[358512038,1745225459805,-500.0,0.00019726,2]
[358512039,1745225459815,-500.0,0.00019726,2]
[358512040,1745225459824,-500.0,0.00019726,2]
[358512041,1745225459835,-764.32,0.00019726,2]
[358512042,1745225459844,-500.0,0.00019726,2]
[358512043,1745225459853,-500.0,0.00019726,2]
[358512044,1745225459863,-500.0,0.00019726,2]
[358512045,1745225459874,-500.0,0.00019726,2]
[358512046,1745225459885,-553.06,0.00019726,2]
[358512047,1745225459896,-500.0,0.00019726,2]
[358512048,1745225459909,-500.0,0.00019726,2]
[358512049,1745225459919,-500.0,0.00019726,2]
[358512050,1745225459929,-349.86247827,0.00019726,2]
[358512051,1745225459939,-500.0,0.00019726,2]
[358512052,1745225459948,-1861.44,0.00019726,2]
[358512053,1745225459958,-500.0,0.00019726,2]
[358512054,1745225459968,-501.6308269,0.00019726,2]
[358512055,1745225459978,-175.87387079,0.00019726,2]
[358512056,1745225459988,-500.0,0.00019726,2]
[358512057,1745225459997,-500.0,0.00019726,2]
[358512058,1745225460007,-500.0,0.00019726,2]
[358512059,1745225460017,-299.65,0.00019726,2]
[358512060,1745225460026,-500.0,0.00019726,2]
[358512061,1745225460036,-500.0,0.00019726,2]
[358512062,1745225460046,-500.0,0.00019726,2]
[358512063,1745225460056,-500.0,0.00019726,2]
[358512064,1745225460066,-500.0,0.00019726,2]
[358512065,1745225460075,-500.0,0.00019726,2]
[358512066,1745225460086,-500.0,0.00019726,2]
[358512067,1745225460095,-500.0,0.00019726,2]
[358512068,1745225460105,-500.0,0.00019726,2]
[358512069,1745225460115,-604.71589982,0.00019726,2]
[358512070,1745225460125,-383.61,0.00019726,2]
[358512071,1745225460134,-500.0,0.00019726,2]
[358512072,1745225460143,-500.0,0.00019726,2]
[358512073,1745225460153,-500.0,0.00019726,2]
[358512074,1745225460163,-500.0,0.00019726,2]
[358512075,1745225460172,-3826.69,0.00019726,2]
[358512076,1745225460182,-500.0,0.00019726,2]
[358512077,1745225460192,-500.0,0.00019726,2]
[358512078,1745225460201,-731.81,0.00019726,2]
[358512079,1745225460211,-500.0,0.00019726,2]
[358512080,1745225460220,-500.0,0.00019726,2]
[358512081,1745225460230,-500.0,0.00019726,2]
[358512082,1745225460239,-678.25,0.00019726,2]
[358512083,1745225460249,-500.0,0.00019726,2]
[358512084,1745225460259,-500.0,0.00019726,2]
[358512085,1745225460268,-500.0,0.00019726,2]
[358512086,1745225460277,-500.0,0.00019726,2]
[358512087,1745225460286,-500.0,0.00019726,2]
[358512088,1745225460295,-500.0,0.00019726,2]
[358512089,1745225460304,-500.0,0.00019726,2]
[358512090,1745225460314,-500.0,0.00019726,2]
[358512091,1745225460323,-500.0,0.00019726,2]
[358512092,1745225460333,-500.0,0.00019726,2]
[358512093,1745225460342,-760.08,0.00019726,2]
[358512094,1745225460352,-500.0,0.00019726,2]
[358512095,1745225460360,-490.79,0.00019726,2]
[358512096,1745225460369,-500.0,0.00019726,2]
[358512097,1745225460378,-681.04,0.00019726,2]
[358512098,1745225460387,-500.0,0.00019726,2]
[358512099,1745225460396,-500.0,0.00019726,2]
[358512100,1745225460404,-500.0,0.00019726,2]
[358512101,1745225460413,-349.74586038,0.00019726,2]
[358512102,1745225460422,-774.86,0.00019726,2]
[358512103,1745225460430,-500.0,0.00019726,2]
[358512104,1745225460439,-500.0,0.00019726,2]
[358512105,1745225460448,-662.75,0.00019726,2]
[358512106,1745225460457,-500.0,0.00019726,2]
[358512107,1745225460466,-504.89,0.00019726,2]
[358512108,1745225460475,-500.0,0.00019726,2]
[358512109,1745225460485,-500.0,0.00019726,2]
[358512110,1745225460494,-500.0,0.00019726,2]
[358512111,1745225460504,-500.0,0.00019726,2]
[358512112,1745225460513,-500.0,0.00019726,2]
[358512113,1745225460523,-428.65076843,0.00019726,2]
[358512114,1745225460533,-500.0,0.00019726,2]
[358512115,1745225460542,-500.0,0.00019726,2]
[358512116,1745225460551,-500.0,0.00019726,2]
[358512117,1745225460561,-500.0,0.00019726,2]
[358512118,1745225460570,-500.0,0.00019726,2]
[358512119,1745225460578,-1304.79,0.00019726,2]
[358512120,1745225460587,-646.3,0.00019726,2]
[358512121,1745225460597,-500.0,0.00019726,2]
[358512122,1745225460606,-239.61,0.00019726,2]
[358512123,1745225460615,-500.0,0.00019726,2]
[358512124,1745225460626,-500.0,0.00019726,2]
[358512125,1745225460635,-500.0,0.00019726,2]
[358512126,1745225460644,-500.0,0.00019726,2]
[358512127,1745225460654,-500.0,0.00019726,2]
[358512128,1745225460663,-500.0,0.00019726,2]
[358512129,1745225460673,-500.0,0.00019726,2]
[358512130,1745225460683,-500.0,0.00019726,2]
[358512131,1745225460693,-500.0,0.00019726,2]
[358512132,1745225460702,-500.0,0.00019726,2]
[358512133,1745225460711,-500.0,0.00019726,2]
[358512134,1745225460722,-500.0,0.00019726,2]
[358512135,1745225460732,-500.0,0.00019726,2]
[358512136,1745225460741,-500.0,0.00019726,2]
[358512137,1745225460750,-500.0,0.00019726,2]
[358512138,1745225460759,-500.0,0.00019726,2]
[358512139,1745225460768,-500.0,0.00019726,2]
[358512140,1745225460778,-509.25973869,0.00019726,2]
[358512141,1745225460787,-500.0,0.00019726,2]
[358512142,1745225460796,-500.0,0.00019726,2]
[358512143,1745225460805,-500.0,0.00019726,2]
[358512144,1745225460815,-510.85731941,0.00019726,2]
[358512145,1745225460824,-500.0,0.00019726,2]
[358512146,1745225460833,-500.0,0.00019726,2]
[358512147,1745225460843,-486.27261311,0.00019726,2]
[358512148,1745225460853,-500.0,0.00019726,2]
[358512149,1745225460862,-500.0,0.00019726,2]
[358512150,1745225460872,-500.0,0.00019726,2]
[358512151,1745225460882,-500.0,0.00019726,2]
[358512152,1745225460892,-500.0,0.00019726,2]
[358512153,1745225460904,-545.67,0.00019726,2]
[358512154,1745225460913,-568.72,0.00019726,2]
[358512155,1745225460921,-772.52,0.00019726,2]
[358512156,1745225460929,-510.44106176,0.00019726,2]
[358512157,1745225460940,-500.0,0.00019726,2]
[358512158,1745225461046,-500.0,0.00019726,2]
[358512159,1745225461056,-500.0,0.00019726,2]
[358512160,1745225461066,-500.0,0.00019726,2]
[358512161,1745225461076,-500.0,0.00019726,2]
[358512162,1745225461086,-500.0,0.00019726,2]
[358512163,1745225461096,-500.0,0.00019726,2]
[358512164,1745225461106,-500.0,0.00019726,2]
[358512165,1745225461116,-500.0,0.00019726,2]
[358512166,1745225461126,-546.88,0.00019726,2]
[358512167,1745225461135,-500.0,0.00019726,2]
[358512168,1745225461145,-500.0,0.00019726,2]
[358512169,1745225461155,-500.0,0.00019726,2]
[358512170,1745225461163,-500.0,0.00019726,2]
[358512171,1745225461173,-500.0,0.00019726,2]
[358512172,1745225461182,-533.61,0.00019726,2]
[358512173,1745225461192,-500.0,0.00019726,2]
[358512174,1745225461201,-500.0,0.00019726,2]
[358512175,1745225461211,-500.0,0.00019726,2]
[358512176,1745225461220,-2057.86,0.00019726,2]
[358512177,1745225461230,-500.0,0.00019726,2]
[358512178,1745225461240,-500.0,0.00019726,2]
[358512179,1745225461251,-500.0,0.00019726,2]
[358512180,1745225461261,-500.0,0.00019726,2]
[358512181,1745225461270,-825.83,0.00019726,2]
[358512182,1745225461280,-500.0,0.00019726,2]
[358512183,1745225461290,-500.0,0.00019726,2]
[358512184,1745225461300,-500.0,0.00019726,2]
[358512185,1745225461309,-500.0,0.00019726,2]
[358512186,1745225461319,-6615.03,0.00019726,2]
[358512187,1745225461330,-500.0,0.00019726,2]
[358512188,1745225461339,-500.0,0.00019726,2]
[358512189,1745225461349,-184.23798002,0.00019726,2]
[358512190,1745225461359,-255.17242618,0.00019726,2]
[358512191,1745225461368,-500.0,0.00019726,2]
[358512192,1745225461378,-614.64,0.00019726,2]
[358512193,1745225461387,-705.42,0.00019726,2]
[358512194,1745225461396,-895.67,0.00019726,2]
[358512195,1745225461405,-500.0,0.00019726,2]
[358512196,1745225461415,-500.0,0.00019726,2]
[358512197,1745225461424,-620.96599569,0.00019726,2]
[358512198,1745225461434,-500.0,0.00019726,2]
[358512199,1745225461443,-500.0,0.00019726,2]
[358512200,1745225461453,-500.0,0.00019726,2]
[358512201,1745225461463,-3992.88,0.00019726,2]
[358512202,1745225461474,-177.43,0.00019726,2]
[358512203,1745225461483,-500.0,0.00019726,2]
[358512204,1745225461492,-500.0,0.00019726,2]
[358512205,1745225461502,-570.74764126,0.00019726,2]
[358512206,1745225461512,-500.0,0.00019726,2]
[358512207,1745225461522,-500.0,0.00019726,2]
[358512208,1745225461533,-500.0,0.00019726,2]
[358512209,1745225461542,-500.0,0.00019726,2]
[358512210,1745225461552,-654.0,0.00019726,2]
[358512211,1745225461562,-500.0,0.00019726,2]
[358512212,1745225461572,-500.0,0.00019726,2]
[358512213,1745225461582,-500.0,0.00019726,2]
[358512214,1745225461591,-500.0,0.00019726,2]
[358512215,1745225461601,-500.0,0.00019726,2]
[358512216,1745225461611,-500.0,0.00019726,2]
[358512217,1745225461621,-500.0,0.00019726,2]
[358512218,1745225461631,-500.0,0.00019726,2]
[358512219,1745225461641,-649.61545787,0.00019726,2]
[358512220,1745225461650,-500.0,0.00019726,2]
[358512221,1745225461660,-1292.22,0.00019726,2]
[358512222,1745225461670,-2764.9,0.00019726,2]
[358512223,1745225461679,-1767.47,0.00019726,2]
[358512224,1745225461689,-500.0,0.00019726,2]
[358512225,1745225461698,-500.0,0.00019726,2]
[358512226,1745225461708,-498.79014281,0.00019726,2]
[358512227,1745225461718,-360.82,0.00019726,2]
[358512228,1745225461728,-500.0,0.00019726,2]
[358512229,1745225461738,-500.0,0.00019726,2]
[358512230,1745225461747,-500.0,0.00019726,2]
[358512231,1745225461757,-500.0,0.00019726,2]
[358512232,1745225461766,-500.0,0.00019726,2]
[358512233,1745225461775,-154.6121148,0.00019726,2]
[358512234,1745225461784,-500.0,0.00019726,2]
[358512235,1745225461794,-692.63,0.00019726,2]
[358512236,1745225461803,-587.36699915,0.00019726,2]
[358512237,1745225461813,-672.69,0.00019726,2]
[358512238,1745225461822,-500.0,0.00019726,2]
[358512239,1745225461832,-500.0,0.00019726,2]
[358512240,1745225461841,-500.0,0.00019726,2]
[358512241,1745225461850,-500.0,0.00019726,2]
[358512242,1745225461859,-500.0,0.00019726,2]
[358512243,1745225461869,-500.0,0.00019726,2]
[358512244,1745225461879,-500.0,0.00019726,2]
[358512245,1745225461889,-3183.06,0.00019726,2]
[358512246,1745225461900,-1517.29,0.00019726,2]
[358512247,1745225461911,-500.0,0.00019726,2]
[358512248,1745225461920,-500.0,0.00019726,2]
[358512249,1745225461929,-500.0,0.00019726,2]
[358512250,1745225461939,-500.0,0.00019726,2]
[358512251,1745225461949,-500.0,0.00019726,2]
[358512252,1745225461960,-1896.82,0.00019726,2]
[358512253,1745225461970,-500.0,0.00019726,2]
[358512254,1745225461981,-500.0,0.00019726,2]
[358512255,1745225461992,-500.0,0.00019726,2]
[358512256,1745225462001,-500.0,0.00019726,2]
[358512257,1745225462011,-500.0,0.00019726,2]
[358512258,1745225462021,-500.0,0.00019726,2]
[358512259,1745225462031,-500.0,0.00019726,2]
[358512260,1745225462040,-500.0,0.00019726,2]
[358512261,1745225462049,-9139.09,0.00019726,2]
[358512262,1745225462059,-500.0,0.00019726,2]
[358512263,1745225462069,-500.0,0.00019726,2]
[358512264,1745225462079,-500.0,0.00019726,2]
[358512265,1745225462088,-500.0,0.00019726,2]
[358512266,1745225462098,-500.0,0.00019726,2]
[358512267,1745225462107,-858.48,0.00019726,2]
[358512268,1745225462116,-500.0,0.00019726,2]
[358512269,1745225462126,-274.927625,0.00019726,2]
[358512270,1745225462135,-500.0,0.00019726,2]
[358512271,1745225462220,-500.0,0.00019726,2]
[358512272,1745225462232,-500.0,0.00019726,2]
[358512273,1745225462242,-500.0,0.00019726,2]
[358512274,1745225462251,-500.0,0.00019726,2]
[358512275,1745225462260,-670.22,0.00019726,2]
[358512276,1745225462270,-530.75,0.00019726,2]
[358512277,1745225462279,-500.0,0.00019726,2]
[358512278,1745225462288,-593.26,0.00019726,2]
[358512279,1745225462298,-951.81,0.00019726,2]
[358512280,1745225462308,-500.0,0.00019726,2]
[358512281,1745225462317,-500.0,0.00019726,2]
[358512282,1745225462327,-500.0,0.00019726,2]
[358512283,1745225462336,-500.0,0.00019726,2]
[358512284,1745225462346,-500.0,0.00019726,2]
[358512285,1745225462356,-500.0,0.00019726,2]
[358512286,1745225462366,-500.0,0.00019726,2]
[358512287,1745225462376,-15025.36,0.00019726,2]
[358512288,1745225462386,-500.0,0.00019726,2]
[358512289,1745225462396,-500.0,0.00019726,2]
[358512290,1745225462406,-500.0,0.00019726,2]
[358512291,1745225462416,-385.91685179,0.00019726,2]
[358512292,1745225462426,-500.0,0.00019726,2]
[358512293,1745225462436,-505.26810038,0.00019726,2]
[358512294,1745225462445,-500.0,0.00019726,2]
[358512295,1745225462454,-311.61,0.00019726,2]
[358512296,1745225462464,-500.0,0.00019726,2]
[358512297,1745225462473,-500.0,0.00019726,2]
[358512298,1745225462483,-500.0,0.00019726,2]
[358512299,1745225462493,-500.0,0.00019726,2]
[358512300,1745225462502,-500.0,0.00019726,2]
[358512301,1745225462511,-500.0,0.00019726,2]
[358512302,1745225462521,-500.0,0.00019726,2]
[358512303,1745225462531,-500.0,0.00019726,2]
[358512304,1745225462540,-500.0,0.00019726,2]
[358512305,1745225462550,-1500.0,0.00019726,2]
[358512306,1745225462559,-500.0,0.00019773,2]
[358512307,1745225462569,-500.0,0.00019773,2]
[358512308,1745225462579,-503.87895661,0.00019773,2]
[358512309,1745225462588,-500.0,0.00019773,2]
[358512310,1745225462598,-500.0,0.00019773,2]
[358512311,1745225462608,-502.91488936,0.00019773,2]
[358512312,1745225462617,-304.65093799,0.00019773,2]
[358512313,1745225462626,-500.0,0.00019773,2]
[358512314,1745225462636,-151.0,0.000198,2]
[358512315,1745225462646,-7804.75849472,0.000198,2]
[358512316,1745225462655,-203323.40726202,0.000198,2]
[358512317,1745225462667,-3385.32715814,0.00019845,2]
[358512318,1745225462677,-151.0,0.000199,2]
[358512319,1745225462686,-151.0,0.000199,2]
[358512320,1745225462696,-10059.35933193,0.000199,2]
[358512321,1745225462706,-772.41465234,0.00019951,2]
[358512322,1745225462716,-153.0,0.00019973,2]
[358512323,1745225462726,-153.0,0.00019973,2]
[358512324,1745225462745,-153.0,0.00019973,2]
[358512325,1745225462761,-153.0,0.00019973,2]
[358512326,1745225462779,-153.0,0.00019973,2]
[358512327,1745225462798,-153.0,0.00019973,2]
[358512328,1745225462817,-153.0,0.00019973,2]
[358512329,1745225462835,-48763.55738937,0.0001999,2]
[358512330,1745225462855,-430.15,0.0002,3]
[358512331,1745225462869,-170.03878385,0.0002,2]
[358512332,1745225462890,-500.0,0.0002,2]
[358512333,1745225462911,-500.0,0.0002,2]
[358512334,1745225462929,-564.2,0.0002,2]
[358512335,1745225462945,-500.0,0.0002,2]
[358512336,1745225462964,-500.0,0.0002,2]
[358512337,1745225462982,-500.0,0.0002,2]
[358512338,1745225462996,-500.0,0.0002,2]
[358512339,1745225463011,-222.37324887,0.0002,2]
[358512340,1745225463027,-439.85541903,0.0002,2]
[358512341,1745225463042,-500.0,0.0002,2]
[358512342,1745225463057,-500.0,0.0002,2]
[358512343,1745225463074,-351.6787972,0.0002,2]
[358512344,1745225463089,-500.0,0.0002,2]
[358512345,1745225463106,-598.9869439,0.0002,2]
[358512346,1745225463122,-157.69233889,0.0002,2]
[358512347,1745225463138,-500.0,0.0002,2]
[358512348,1745225463154,-500.0,0.0002,2]
[358512349,1745225463170,-500.0,0.0002,2]
[358512350,1745225463186,-500.0,0.0002,2]
[358512351,1745225463203,-466.83833205,0.0002,2]
[358512352,1745225463219,-587.98,0.0002,2]
[358512353,1745225463234,-500.0,0.0002,2]
[358512354,1745225463250,-500.0,0.0002,2]
[358512355,1745225463265,-521.28345699,0.0002,2]
[358512356,1745225463281,-500.0,0.0002,2]
[358512357,1745225463295,-2238.45,0.0002,2]
[358512358,1745225463310,-642.51,0.0002,2]
[358512359,1745225463325,-2000.0,0.0002,2]
[358512360,1745225463340,-500.0,0.0002,2]
[358512361,1745225463355,-500.0,0.0002,2]
[358512362,1745225463370,-600.27,0.0002,2]
[358512363,1745225463386,-500.0,0.0002,2]
[358512364,1745225463403,-500.0,0.0002,2]
[358512365,1745225463420,-764.32,0.0002,2]
[358512366,1745225463435,-500.0,0.0002,2]
[358512367,1745225463451,-500.0,0.0002,2]
[358512368,1745225463466,-187.45,0.0002,2]
[358512369,1745225463482,-500.0,0.0002,2]
[358512370,1745225463498,-500.0,0.0002,2]
[358512371,1745225463513,-500.0,0.0002,2]
[358512372,1745225463529,-564.69,0.0002,2]
[358512373,1745225463546,-1861.44,0.0002,2]
[358512374,1745225463561,-500.0,0.0002,2]
[358512375,1745225463575,-500.0,0.0002,2]
[358512376,1745225463693,-530.84894247,0.0002,2]
[358512377,1745225463703,-500.0,0.0002,2]
[358512378,1745225463713,-500.0,0.0002,2]
[358512379,1745225463723,-500.0,0.0002,2]
[358512380,1745225463732,-500.0,0.0002,2]
[358512381,1745225463742,-500.0,0.0002,2]
[358512382,1745225463752,-500.0,0.0002,2]
[358512383,1745225463761,-500.0,0.0002,2]
[358512384,1745225463771,-500.0,0.0002,2]
[358512385,1745225463781,-500.0,0.0002,2]
[358512386,1745225463790,-500.0,0.0002,2]
[358512387,1745225463800,-500.0,0.0002,2]
[358512388,1745225463810,-500.0,0.0002,2]
[358512389,1745225463819,-3826.69,0.0002,2]
[358512390,1745225463830,-500.0,0.0002,2]
[358512391,1745225463840,-576.87612083,0.0002,2]
[358512392,1745225463851,-731.81,0.0002,2]
[358512393,1745225463861,-612.7541492,0.0002,2]
[358512394,1745225463871,-500.0,0.0002,2]
[358512395,1745225463883,-642.22924551,0.0002,2]
[358512396,1745225463894,-678.25,0.0002,2]
[358512397,1745225463909,-500.0,0.0002,2]
[358512398,1745225463919,-544.10806407,0.0002,2]
[358512399,1745225463928,-500.0,0.0002,2]
[358512400,1745225463939,-500.0,0.0002,2]
[358512401,1745225463949,-526.110985,0.0002,2]
[358512402,1745225463961,-503.87885812,0.0002,2]
[358512403,1745225463971,-580.56681698,0.0002,2]
[358512404,1745225463981,-500.0,0.0002,2]
[358512405,1745225463991,-500.0,0.0002,2]
[358512406,1745225464001,-510.10804056,0.0002,2]
[358512407,1745225464010,-760.08,0.0002,2]
[358512408,1745225464020,-500.0,0.0002,2]
[358512409,1745225464030,-500.0,0.0002,2]
[358512410,1745225464041,-681.04,0.0002,2]
[358512411,1745225464051,-500.0,0.0002,2]
[358512412,1745225464061,-508.76348735,0.0002,2]
[358512413,1745225464071,-500.0,0.0002,2]
[358512414,1745225464081,-774.86,0.0002,2]
[358512415,1745225464090,-500.0,0.0002,2]
[358512416,1745225464101,-514.21212447,0.0002,2]
[358512417,1745225464111,-662.75,0.0002,2]
[358512418,1745225464120,-500.0,0.0002,2]
[358512419,1745225464130,-504.89,0.0002,2]
[358512420,1745225464140,-500.0,0.0002,2]
[358512421,1745225464151,-500.0,0.0002,2]
[358512422,1745225464160,-524.04384109,0.0002,2]
[358512423,1745225464170,-500.0,0.0002,2]
[358512424,1745225464180,-500.0,0.0002,2]
[358512425,1745225464190,-559.31206224,0.0002,2]
[358512426,1745225464200,-500.0,0.0002,2]
[358512427,1745225464209,-500.0,0.0002,2]
[358512428,1745225464219,-500.0,0.0002,2]
[358512429,1745225464228,-500.0,0.0002,2]
[358512430,1745225464238,-1304.79,0.0002,2]
[358512431,1745225464248,-646.3,0.0002,2]
[358512432,1745225464258,-500.0,0.0002,2]
[358512433,1745225464268,-409.14,0.0002,2]
[358512434,1745225464279,-236.25597664,0.0002,2]
[358512435,1745225464288,-500.0,0.0002,2]
[358512436,1745225464298,-500.0,0.0002,2]
[358512437,1745225464307,-500.0,0.0002,2]
[358512438,1745225464317,-500.0,0.0002,2]
[358512439,1745225464326,-500.0,0.0002,2]
[358512440,1745225464335,-500.0,0.0002,2]
[358512441,1745225464345,-500.0,0.0002,2]
[358512442,1745225464354,-500.0,0.0002,2]
[358512443,1745225464363,-500.0,0.0002,2]
[358512444,1745225464373,-500.0,0.0002,2]
[358512445,1745225464382,-500.0,0.0002,2]
[358512446,1745225464392,-500.0,0.0002,2]
[358512447,1745225464401,-500.0,0.0002,2]
[358512448,1745225464411,-500.0,0.0002,2]
[358512449,1745225464421,-500.0,0.0002,2]
[358512450,1745225464431,-352.49956014,0.0002,2]
[358512451,1745225464440,-500.0,0.0002,2]
[358512452,1745225464449,-500.0,0.0002,2]
[358512453,1745225464459,-500.0,0.0002,2]
[358512454,1745225464469,-496.3,0.0002,2]
[358512455,1745225464478,-772.52,0.0002,2]
[358512456,1745225464488,-500.0,0.0002,2]
[358512457,1745225464497,-500.0,0.0002,2]
[358512458,1745225464507,-500.0,0.0002,2]
[358512459,1745225464516,-387.51,0.0002,2]
[358512460,1745225464525,-546.88,0.0002,2]
[358512461,1745225464535,-154.61281071,0.0002,2]
[358512462,1745225464544,-500.0,0.0002,2]
[358512463,1745225464553,-251.63,0.0002,2]
[358512464,1745225464562,-533.61,0.0002,2]
[358512465,1745225464572,-405.13,0.0002,2]
[358512466,1745225464582,-500.0,0.0002,2]
[358512467,1745225464592,-2057.86,0.0002,2]
[358512468,1745225464602,-500.0,0.0002,2]
[358512469,1745225464613,-500.0,0.0002,2]
[358512470,1745225464622,-500.0,0.0002,2]
[358512471,1745225464633,-825.83,0.0002,2]
[358512472,1745225464642,-500.0,0.0002,2]
[358512473,1745225464652,-559.78575186,0.0002,2]
[358512474,1745225464661,-6615.03,0.0002,2]
[358512475,1745225464671,-500.0,0.0002,2]
[358512476,1745225464681,-500.0,0.0002,2]
[358512477,1745225464691,-614.64,0.0002,2]
[358512478,1745225464700,-705.42,0.0002,2]
[358512479,1745225464712,-895.67,0.0002,2]
[358512480,1745225464721,-260.62771354,0.0002,2]
[358512481,1745225464731,-500.0,0.0002,2]
[358512482,1745225464740,-500.0,0.0002,2]
[358512483,1745225464750,-3992.88,0.0002,2]
[358512484,1745225464759,-500.0,0.0002,2]
[358512485,1745225464768,-500.0,0.0002,2]
[358512486,1745225464778,-500.0,0.0002,2]
[358512487,1745225464788,-500.0,0.0002,2]
[358512488,1745225464798,-500.0,0.0002,2]
[358512489,1745225464807,-500.0,0.0002,2]
[358512490,1745225464817,-654.0,0.0002,2]
[358512491,1745225464827,-326.60349018,0.0002,2]
[358512492,1745225464836,-500.0,0.0002,2]
[358512493,1745225464845,-500.0,0.0002,2]
[358512494,1745225464855,-500.0,0.0002,2]
[358512495,1745225464865,-500.0,0.0002,2]
[358512496,1745225464941,-500.0,0.0002,2]
[358512497,1745225464953,-1292.22,0.0002,2]
[358512498,1745225464962,-2764.9,0.0002,2]
[358512499,1745225464973,-1767.47,0.0002,2]
[358512500,1745225464983,-500.0,0.0002,2]
[358512501,1745225464993,-500.0,0.0002,2]
[358512502,1745225465003,-500.0,0.0002,2]
[358512503,1745225465014,-500.0,0.0002,2]
[358512504,1745225465023,-500.0,0.0002,2]
[358512505,1745225465033,-500.0,0.0002,2]
[358512506,1745225465044,-500.0,0.0002,2]
[358512507,1745225465053,-692.63,0.0002,2]
[358512508,1745225465063,-672.69,0.0002,2]
[358512509,1745225465073,-500.0,0.0002,2]
[358512510,1745225465083,-500.0,0.0002,2]
[358512511,1745225465092,-500.0,0.0002,2]
[358512512,1745225465102,-500.0,0.0002,2]
[358512513,1745225465111,-500.0,0.0002,2]
[358512514,1745225465122,-500.0,0.0002,2]
[358512515,1745225465131,-500.0,0.0002,2]
[358512516,1745225465141,-3183.06,0.0002,2]
[358512517,1745225465150,-1517.29,0.0002,2]
[358512518,1745225465160,-500.0,0.0002,2]
[358512519,1745225465169,-500.0,0.0002,2]
[358512520,1745225465179,-500.0,0.0002,2]
[358512521,1745225465188,-500.0,0.0002,2]
[358512522,1745225465197,-500.0,0.0002,2]
[358512523,1745225465206,-1896.82,0.0002,2]
[358512524,1745225465215,-500.0,0.0002,2]
[358512525,1745225465225,-500.0,0.0002,2]
[358512526,1745225465234,-500.0,0.0002,2]
[358512527,1745225465243,-500.0,0.0002,2]
[358512528,1745225465253,-500.0,0.0002,2]
[358512529,1745225465263,-500.0,0.0002,2]
[358512530,1745225465273,-500.0,0.0002,2]
[358512531,1745225465283,-500.0,0.0002,2]
[358512532,1745225465292,-9139.09,0.0002,2]
[358512533,1745225465301,-500.0,0.0002,2]